Workbook

Sheet Начало
A2: Начало работы с формулами
A3: Выполнив всего несколько шагов, вы научитесь вводить формулы и функции в Excel — самом популярном приложении для работы с электронными таблицами.
A4: Чтобы вернуться в начало страницы, нажмите клавиши CTRL+HOME. Чтобы начать курс, нажмите клавиши CTRL+PAGE DOWN.

Sheet Основные сведения
A1: Основные сведения: математические расчеты в Excel
A2: Вы можете складывать, вычитать, умножать и делить числа в Excel, не используя встроенные функции. Для этого потребуются только основные операторы: +, -, *, /. Все формулы начинаются со знака равенства (=). | C2: Числа: | E2: Операция: | F2: Формулы: | G2: Ответы:
A3: Чтобы сложить числа, выделите ячейку F3, введите =C3+C4, а затем нажмите клавишу ВВОД. | C3: 1 | E3: Сложение (+) | G3: =C3+C4 -> 3
A4: Чтобы вычесть числа, выделите ячейку F4, введите =C3-C4, а затем нажмите клавишу ВВОД. | C4: 2 | E4: Вычитание (-) | G4: =C3-C4 -> -1
A5: Чтобы умножить числа, выделите ячейку F5, введите =C3*C4, а затем нажмите клавишу ВВОД. | E5: Умножение (*) | G5: =C3*C4 -> 2
A6: Чтобы поделить числа, выделите ячейку F6, введите =C3/C4, а затем нажмите клавишу ВВОД. | E6: Деление (/) | G6: =C3/C4 -> 0.5
A7: Введите в ячейки C3 и C4 другие числа и посмотрите, как автоматически изменятся результаты формулы. | E7: Возведение в степень (^) | G7: =C3^C4 -> 1
A8: ДОПОЛНИТЕЛЬНО Чтобы возвести значение в степень, используйте символ крышки (^), например: =A1^A2. Для ввода формулы нажмите SHIFT+6. В ячейке F7 введите =C3^C4.
A9: Подробнее
A10: Следующий шаг
A11: Немного о формулах, ячейках и диапазонах
A12: Листы Excel состоят из ячеек, которые сгруппированы по строкам и столбцам. Строкам присвоены номера, а столбцам — буквы. На листе больше миллиона строк и 16 000 столбцов, и вы можете вставлять формулы в любые ячейки на их пересечении.
A13: Формулы могут содержать ссылки на ячейки, диапазоны, операторы и константы. Вот примеры формул: =A1+B1 =10+20 =СУММ(A1:A10)
A14: Как вы заметили, в третьем примере мы использовали функцию СУММ. Функция — это встроенная команда, которая принимает значения, определенным образом обрабатывает их и возвращает результат. Например, функция СУММ принимает в качестве значений ссылки на ячейки или диапазоны и суммирует их. В данном примере она вычисляет сумму значений в ячейках с A1 по A10. В Excel более 400 функций, и все их можно найти на вкладке «Формулы».
A15: Формулы с функциями начинаются со знака равенства, за которым следуют имя функции и ее аргументы (значения, которые функция использует для вычисления), заключенные в круглые скобки.
A16: Чтобы подтвердить формулу, нужно нажать клавишу ВВОД. После этого формула будет вычислена, а результат отобразится в ячейке. Чтобы просмотреть саму формулу, взгляните на строку формул под лентой или нажмите клавишу F2, чтобы перейти в режим правки, в котором формула выводится в ячейке. Нажмите клавишу ВВОД еще раз, чтобы завершить работу над формулой и вычислить результат.
A17: Пояснения формул
A18: =10+20 — это формула, где 10 и 20 — константы, а + — оператор.
A19: =СУММ(A1:A10) — это формула, в которой СУММ — это имя функции, в скобках указаны ее аргументы, а A1:A10 — диапазон ячеек для функции.
A20: =СУММ(A1:A10;C1:C10) — это формула, в которой СУММ — это имя функции, в скобках указаны ее аргументы, а A1:A10 иC1:C10— диапазоны ячеек, разделенные точкой с запятой.
A21: ПОЛЕЗНЫЕ СВЕДЕНИЯ Константы — это значения, которые вводятся в ячейки и формулы. Хотя формула =10+20 может давать тот же результат, что и =A1+B1, использовать константы не рекомендуется. Это объясняется следующим: чтобы увидеть значение константы, нужно выделить ячейку и найти его в ней. Из-за этого константы сложно изменять. Гораздо удобнее ввести значения в отдельные ячейки, где их можно легко изменять, и добавить ссылки на них в формулу. Например, выделите желтую ячейку с числом 12 ниже. Вы увидите, что в ней используется функция СУММ, которая ссылается на диапазон ячеек. В формуле нет самих чисел 4 и 8.
A22: Назад
A23: Далее
A24: Дополнительные сведения в Интернете
A25: Использование Microsoft Excel в качестве калькулятора
A26: Полные сведения о формулах в Excel
A27: Функции Excel (по категориям)
A28: Функции Excel (по алфавиту)
A29: Бесплатные учебные веб-курсы по Excel
J40: Значения
J41: 4
J42: 8
J43: =SUM(J41:J42) -> 12

Sheet Общие сведения о функциях
A1: Общие сведения о функциях
A2: Функции позволяют выполнять математические операции, подставлять значения, рассчитывать значения даты и времени и делать многое другое. Попробуем сложить значения с помощью функции СУММ несколькими способами. | C2: Фрукт | D2: Количество | F2: Мясо | G2: Количество
A3: В столбце «Количество» для фруктов (ячейка D7) введите =СУММ(D3:D6). Вы также можете ввести =СУММ( и выбрать диапазон с помощью мыши, а затем нажать клавишу ВВОД. При этом будут просуммированы значения в ячейках D3, D4, D5 и D6. В результате должно получиться 170. | C3: Яблоки | D3: 50 | F3: Говядина | G3: 50
A4: Теперь давайте попробуем использовать автосуммирование. Выделите ячейку в таблице «Мясо» (G7), а затем щелкните «Формулы» > «Автосумма» и выберите операцию «Сумма». Excel автоматически введет формулу. Нажмите клавишу ВВОД, чтобы подтвердить ее. Автосуммирование поддерживает все часто используемые функции. | C4: Апельсины | D4: 20 | F4: Курятина | G4: 30
A5: Также можно использовать сочетание клавиш. Выберите ячейку D15, нажмите ALT=, а затем — ВВОД. При этом автоматически будет введена формула с функцией СУММ. | C5: Бананы | D5: 60 | F5: Свинина | G5: 10
A6: Подробнее | C6: Лимоны | D6: 40 | F6: Рыба | G6: 50
A7: ДОПОЛНИТЕЛЬНО Попробуйте использовать функцию СЧЁТ с помощью одного из этих способов. Она подсчитывает количество ячеек в диапазоне, содержащих числа. | C7: Сумма > | D7: =SUM(D3:D6) -> 170 | F7: Сумма >
A8: Следующий шаг
A9: Еще немного о функциях | C9: Товар | D9: Количество | F9: Товар | G9: Количество
A10: Откройте вкладку «Формулы» и просмотрите библиотеку функций. В ней функции упорядочены по категориям, например «Текстовые», «Дата и время» и т. д. Если нажать кнопку «Вставить функцию», можно будет найти функцию по имени. После этого запустится мастер функций, который поможет вам создать формулу. Если нажать = и начать вводить имя функции, активируется средство Intellisense, которое перечисляет все функции, названия которых начинаются с вводимых букв. Когда вы найдете нужный вариант, нажмите клавишу TAB, и Excel автоматически завершит имя функции и введет открывающую круглую скобку. Кроме того, будут показаны обязательные и необязательные аргументы. Рассмотрим структуру нескольких функций. Функция СУММ имеет следующий синтаксис: | C10: Хлеб | D10: 50 | F10: Хлеб | G10: 50
A11: Функция СУММ возвращает сумму всех значений в ячейках с D35 по D38 и во всем столбце H. СУММ — это имя функции, D35:D38 — первый аргумент диапазона (он почти всегда является обязательным), а H:H — второй аргумент диапазона, отделенный точкой с запятой. Теперь рассмотрим функцию, которая не требует никаких аргументов. | C11: Пончики | D11: 100 | F11: Пончики | G11: 100
A12: Функция СЕГОДНЯ возвращает текущую дату. Ее результат автоматически обновляется при пересчете книги Excel. | C12: Печенье | D12: 40 | F12: Печенье | G12: 40
A13: ПОПРОБУЙТЕ САМИ! Выделите эти ячейки. Затем в правом нижнем углу окна Excel найдите надпись «Сумма: 170». Эта нижняя область называется строкой состояния. В ней можно быстро просмотреть итоговое значение и другие сведения о выделенной ячейке или диапазоне. | C13: Торты | D13: 50 | F13: Торты | G13: 50
A14: ВАЖНО Дважды щелкните эту ячейку. Вы заметите число 100 в конце. Хотя в формулу можно вставлять числа таким образом, делайте это только в исключительных случаях. Это число называется константой, и вы легко можете забыть о его наличии в формуле. Вместо этого рекомендуется включить ссылку на другую ячейку, например F51. Вы легко заметите константу, которая не будет скрыта в формуле. | C14: Пироги | D14: 20 | F14: Пироги | G14: 20
A15: Дополнительные сведения в Интернете | C15: Сумма > | F15: Счет >
A16: Все о функции СУММ
A17: Использование функции «Автосумма» для суммирования чисел
A18: Все о функции СЧЁТ
A19: Бесплатные учебные веб-курсы по Excel
A20: В начало страницы
A21: Следующий шаг
C34: Фрукт | D34: Количество
C35: Яблоки | D35: 50
C36: Апельсины | D36: 20
C37: Бананы | D37: 60
C38: Лимоны | D38: 40
C39: Сумма > | D39: =SUM(D35:D38) -> 170
C44: Товар | D44: Количество
C45: Автомобили | D45: 20
C46: Грузовики | D46: 10
C47: Велосипеды | D47: 10
C48: Коньки | D48: 40
D50: Итого: | F50: Дополнительное значение | G50: Новый итог
D51: =SUM(D45:D48,100) -> 180 | F51: 100 | G51: =SUM(D45:D48,F51) -> 180

Sheet СРЗНАЧ
A1: Функция СРЗНАЧ
A2: Функция СРЗНАЧ вычисляет среднее значение чисел в диапазоне ячеек. | C2: Фрукт | D2: Количество | F2: Мясо | G2: Количество
A3: Выберите ячейку D7, а затем добавьте функцию СРЗНАЧ с помощью автосуммирования. | C3: Яблоки | D3: 50 | F3: Говядина | G3: 50
A4: Затем выберите ячейку G7 и введите функцию СРЗНАЧ: =СРЗНАЧ(G3:G6). | C4: Апельсины | D4: 20 | F4: Курятина | G4: 30
A5: В ячейке D15 можно воспользоваться автосуммированием или же ввести другую функцию СРЗНАЧ от руки. | C5: Бананы | D5: 60 | F5: Свинина | G5: 10
A6: ПОПРОБУЙТЕ САМИ! Выберите любой диапазон чисел, а затем взгляните на строку состояния, чтобы узнать их среднее значение. | C6: Лимоны | D6: 40 | F6: Рыба | G6: 50
A7: Активировать предыдущий лист | C7: Среднее > | F7: Среднее >
A8: Перейти к следующему листу
A9: ДОПОЛНИТЕЛЬНО Попробуйте использовать здесь функцию МЕДИАНА или МОДА. МЕДИАНА выводит значение, которое приходится на середину набора данных, а МОДА — самое частое значение. | C9: Товар | D9: Количество | F9: Товар | G9: Количество
A10: Дополнительные сведения в Интернете | C10: Хлеб | D10: 50 | F10: Хлеб | G10: 50
A11: Подробные сведения о функции СРЗНАЧ в Интернете | C11: Пончики | D11: 100 | F11: Пончики | G11: 100
A12: Подробные сведения о функции МЕДИАНА в Интернете | C12: Печенье | D12: 40 | F12: Печенье | G12: 40
A13: Подробные сведения о функции МОДА в Интернете | C13: Торты | D13: 50 | F13: Торты | G13: 50
A14: Сведения о бесплатных учебных веб-курсах по Excel | C14: Пироги | D14: 20 | F14: Пироги | G14: 20
C15: Среднее >

Sheet МИН И МАКС
A1: Функции МИН и МАКС
A2: Функция МИН выводит минимальное число в диапазоне ячеек. | C2: Фрукты | D2: Количество | F2: Мясо | G2: Количество
A3: Функция МАКС позволяет узнать самое большое число в диапазоне ячеек. | C3: Яблоки | D3: 50 | F3: Говядина | G3: 50
A4: Выберите ячейку D7, а затем добавьте функцию МИН с помощью мастера автосуммирования. | C4: Апельсины | D4: 20 | F4: Курятина | G4: 30
A5: Затем выберите ячейку G7 и введите функцию МАКС: =МАКС(G3:G6). | C5: Бананы | D5: 60 | F5: Свинина | G5: 10
A6: В ячейке D15 можно воспользоваться мастером автосуммирования или же ввести функцию МИН или МАКС от руки. | C6: Лимоны | D6: 40 | F6: Рыба | G6: 50
A7: Дополнительные сведения в Интернете | C7: Минимум > | F7: Максимум >
A8: Все о функции МИН
A9: Все о функции МАКС | C9: Товар | D9: Количество | F9: Товар | G9: Количество
A10: Бесплатные учебные веб-курсы по Excel | C10: Хлеб | D10: 50 | F10: Хлеб | G10: 50
A11: ПОЛЕЗНЫЕ СВЕДЕНИЯ Функцию МИН или МАКС можно использовать с несколькими диапазонами или значениями, например =МИН(A1:A10;B1:B10) или =МАКС(A1:A10;B1). В последней формуле B1 является пороговым значением, то есть формула никогда не выводит результат меньше B1. | C11: Пончики | D11: 100 | F11: Пончики | G11: 100
C12: Печенье | D12: 40 | F12: Печенье | G12: 40
C13: Торты | D13: 50 | F13: Торты | G13: 50
C14: Пироги | D14: 20 | F14: Пироги | G14: 20
C15: Минимум или максимум > | G15: =MIN(G10:G14,10) -> 10

Sheet Дата и время
A1: Функции даты
A2: Excel может вывести текущую дату с учетом региональных параметров компьютера. Кроме того, он может складывать и вычитать даты.
A3: Попробуйте использовать функцию СЕГОДНЯ, которая выводит сегодняшнюю дату. Это динамическая функция, поэтому если вы откроете книгу завтра, дата изменится. Введите =СЕГОДНЯ() в ячейку D6.
A4: Вычитание дат: введите в ячейку D7 свой следующий день рождения в формате дд.мм.гг, и Excel подсчитает в ячейке D8, сколько дней до него осталось, с помощью формулы = D7-D6.
A5: Сложение дат: предположим, вы хотите узнать, когда следует оплатить счет или вернуть книгу в библиотеку. Для этого можно прибавить нужное количество дней к дате. В ячейке D10 введите какое-либо число дней. В ячейке D11 указана формула =D6+D10, которая рассчитывает срок начиная с текущей даты. | C5: Функции даты
A6: ПОЛЕЗНЫЕ СВЕДЕНИЯ Excel хранит даты в виде количества дней, прошедших с 1 января 1900 г. Значения времени переводятся в минуты и хранятся как дробные части дня. Например, значение 12:30 01.01.2017 хранится как 42736,5208. Если значения времени или даты отображаются в виде таких чисел, вы можете нажать клавиши CTRL+1 и на вкладке Число выбрать формат «Дата» или «Время». | C6: Сегодняшняя дата: | F6: =IF(D6=TODAY(),"Ура!","") -> 
A7: ВАЖНО Если вы не хотите, чтобы Excel выводил отрицательное число, потому что вы еще не указали свой день рождения, используйте формулу =ЕСЛИ(D7="";"";D7-D6). Она означает следующее: если ячейка D7 пуста, ничего не отображать, в противном случае вывести D7 минус D6. | C7: Ваш день рождения:
A8: Функции времени | C8: Дней до дня рождения: | D8: =D7-D6 -> 0
A9: Excel может вывести текущее время с учетом региональных параметров компьютера. Кроме того, он может складывать и вычитать значения времени. Например, вы можете отслеживать, сколько часов в неделю проработал сотрудник, чтобы вычислять его зарплату и сверхурочные.
A10: В ячейке D28 введите =ТДАТА(). Эта формула возвращает текущее время, которое обновляется при каждом пересчете книги Excel. Если вам нужно изменить формат времени, нажмите клавиши CTRL+1, на вкладке «Число» щелкните «Время» и выберите нужный формат. | C10: Период оплаты:
A11: Чтобы определить количество часов между значениями времени, в ячейке D36 мы ввели формулу =((D35-D32)-(D34-D33))*24, которая вычисляет время начала и окончания работы, а затем вычитает время, затраченное на обед. Операция *24 в конце формула преобразует дробную часть дня, которая хранится в Excel, в часы. Вам потребуется отформатировать ячейку как число. Чтобы сделать это, откройте вкладку «Главная», нажмите кнопку «Формат» и выберите «Формат ячеек» (или же нажмите клавиши CTRL+1), а затем на вкладке «Число» щелкните «Числовой» и задайте 2 десятичных знака. | C11: Срок платежа: | D11: =D6+D10 -> 00:00:00
A12: Вот как расшифровывается эта формула: возьмем время окончания работы и вычтем из него время начала, затем отнимем от полученного значения разницу между окончанием и началом обеда и умножим результат на 24, чтобы преобразовать дробные значения времени в часы. Схематично это можно представить как =((Время окончания – Время начала) – (Окончание обеда – Начало обеда))*24.
A13: Назад
A14: Далее
A15: Дополнительные сведения в Интернете
A16: Все о функции СЕГОДНЯ
A17: Все о функции ТДАТА
A18: Все о функции ДАТА
A19: Бесплатные учебные веб-курсы по Excel
C27: Функции времени
C28: Текущее время:
C31: Отработано часов
C32: Время начала: | D32: 08:00:00
C33: Окончание обеда: | D33: 12:00:00
C34: Начало обеда: | D34: 13:00:00
C35: Время окончания: | D35: 17:00:00
C36: Всего часов: | D36: =((D35-D32)-(D34-D33))*24 -> 8
C45: Статические значения даты и время
C46: Дата: | D46: 2017-09-27
C47: Время: | D47: 08:52:00

Sheet Объединение текста и чисел
A1: Объединение текста из разных ячеек
A2: В Excel часто приходится объединять текстовые строки, которые находятся в разных ячейках. Допустим, у вас есть списки имен и фамилий и вы хотите объединить их в полные имена. К счастью, в Excel это можно сделать с помощью амперсанда (&), который вводится путем нажатия клавиш SHIFT+7. | C2: Имя | D2: Фамилия | E2: Имя Фамилия | F2: Фамилия Имя
A3: В ячейке E3 введите =D3&C3, чтобы объединить фамилии и имена. | C3: Надежда | D3: Колесникова | E3: =D3&", "&C3 -> Колесникова, Надежда | F3: =C3&" "&D3 -> Надежда Колесникова
A4: Хм, «КолесниковаНадежда» смотрится не так уж красиво. Нужно добавить пробел. Используем кавычки, чтобы создать новую текстовую строку. Введем =D3&","&C3. Синтаксис &","& позволяет объединить пробел с текстом в ячейках. | C4: Виктор | D4: Дегтярев
A5: Кроме того, соединим имя с фамилией в обратном порядке. В ячейке F3 введем =C3&" "&D3. | C5: Виталий | D5: Токарев
A6: Подробнее | C6: Валентина | D6: Александрова
A7: Далее | C7: Николай | D7: Белых
A8: Объединение текста и чисел | C8: Василий | D8: Бутусов
A9: Попробуем объединить с помощью оператора & не только текстовые строки, но и числа. Взгляните на диапазон C28:D29. Значения даты и времени указаны в разных ячейках. Их можно объединить с помощью символа &, но результат в ячейках C32:C33 не слишком радует. К сожалению, Excel не знает, как вы хотите отформатировать числа, поэтому представляет их в базовом формате. В данном случае это порядковый номер даты. Нужно в явном виде указать, как следует отформатировать число в формуле. Для этого можно использовать функцию ТЕКСТ и код формата. | C9: Кирилл | D9: Крюков
A10: В ячейке C36 введите =C28&" "&ТЕКСТ(D28;"ДД.ММ.ГГГГ"). ДД.ММ.ГГГГ — это русский формат даты, например 23.09.2017. | C10: Евгения | D10: Маслова
A11: В ячейке C37 введите =C29&" "&ТЕКСТ(D29;"Ч:ММ"). Ч:ММ — это русский формат времени, например 13:30.
A12: ПОПРОБУЙТЕ САМИ! Формулы, особенно длинные, иногда сложно читать. Вы можете разделить их на части пробелами: =C28 & " " & ТЕКСТ(D28;"ДД.ММ.ГГГГ")
A13: ЭТО СЛЕДУЕТ ЗНАТЬ Если вы не знаете, какой формат кода использовать, можно нажать клавиши CTRL+1 и открыть вкладку «Число», чтобы отформатировать любую ячейку нужным образом. Затем выберите пункт «(все форматы)». Вы можете скопировать нужный код формата в формулу.
A14: Дополнительные сведения в Интернете
A15: Все о функции ТЕКСТ
A16: Объединение текста и чисел
A17: Бесплатные учебные веб-курсы по Excel
C27: Использование текста и чисел
C28: Сегодняшняя дата: | D28: =TODAY() -> 2021-10-19
C29: Текущее время: | D29: =NOW() -> 44488.4803
C31: Объединение текста и чисел
C32: =C28&" "&D28 -> Сегодняшняя дата: 44488
C33: =C29&" "&D29 -> Текущее время: 44488.4802967593
C35: Форматирование текста и чисел
C36: =C28 &" "& TEXT(D28,"ДД.ММ.ГГГГ") -> Сегодняшняя дата: ДД44488.ММ.ГГГГ
C37: =C29&" "&TEXT(D29,"Ч:ММ") -> Текущее время: Ч:ММ

Sheet Операторы ЕСЛИ
A1: Операторы ЕСЛИ
A2: Операторы ЕСЛИ позволяют выполнять логические сравнения условий. Обычно оператор ЕСЛИ означает следующее: если условие имеет значение ИСТИНА, следует выполнить некое действие, в противном случае необходимо выполнить другое действие. Формулы могут возвращать текст, значения или даже другие вычисления.
A3: В ячейке D9 введите =ЕСЛИ(C9="Яблоко";ИСТИНА;ЛОЖЬ). Правильный ответ — ИСТИНА.
A4: Скопируйте ячейку D9 в D10. В ней будет выведен ответ ЛОЖЬ, так как апельсины и яблоки — разные вещи.
A5: Попробуем еще один пример. Взгляните на формулу в ячейке D12: =ЕСЛИ(C12<100;"Меньше 100";"100 или больше"). Что произойдет, если в ячейке C12 ввести число больше 100?
A6: ВАЖНЫЕ СВЕДЕНИЯ В отличие от других слов, значения ИСТИНА и ЛОЖЬ не нужно заключать в кавычки. Кроме того, Excel автоматически пишет их с большой буквы. Для чисел также не нужны кавычки. Обычный текст, такой как «Да» или «Нет», необходимо заключать в кавычки: =ЕСЛИ(C9="Яблоко";"Да";"Нет")
A7: Подробнее
A8: Далее | C8: Операторы ЕСЛИ
A9: Оператор ЕСЛИ с другой функцией | C9: Яблоко
A10: С помощью операторов ЕСЛИ также можно выполнять дополнительные вычисления при соблюдении определенного условия. В этом примере мы определим, нужно ли взимать НДС, и вычислим его, если условие соблюдается. | C10: Апельсин
A11: В ячейке F33 мы ввели =ЕСЛИ(E33="Да";F31*НДС;0), где «НДС» — это именованный диапазон со значением 0,0825. Формула означает следующее: если значение в ячейке E33 равно «Да», следует умножить значение в ячейке F31 на НДС, в противном случае вернуть 0. Выберите «Нет» вместо «Да» в ячейке E33 и посмотрите, как изменится вычисление.
A12: Затем мы добавим оператор ЕСЛИ, чтобы рассчитать стоимость доставки, если она требуется. В ячейке F35 указана формула =ЕСЛИ(E35="Да";СУММ(D28:D29)*1,25;0). Она означает следующее: если ячейка E35 имеет значение «Да», следует вычислить сумму в столбце «Количество» приведенной выше таблицы и умножить ее на 1,25, в противном случае необходимо вернуть 0. | C12: 50 | D12: =IF(C12<100,"Меньше 100","100 или больше") -> Меньше 100
A13: Теперь замените 1,25 в формуле в ячейке F35 словом «Доставка». По мере ввода Excel найдет и предложит вам это значение. Нажмите клавишу TAB, чтобы ввести его. Это именованный диапазон, который мы определили с помощью команды «Формулы» > «Задать имя». Если вам когда-либо потребуется изменить стоимость доставки, вы можете сделать это один раз, а затем использовать имя «Доставка» в любой ячейке книги.
A14: ПОЛЕЗНЫЕ СВЕДЕНИЯ При создании формулы Excel автоматически выводит цветные границы вокруг диапазонов, на которые она ссылается; при этом цвет границ соответствует цвету диапазона в формуле. Убедитесь в этом сами: выделите ячейку F33 и нажмите клавишу F2, чтобы изменить формулу.
A15: СОВЕТ ЭКСПЕРТА Благодаря именованным диапазонам можно определить условия или значения один раз, а затем многократно использовать их в книге. Чтобы просмотреть все именованные диапазоны в книге, выберите «Формулы» > «Диспетчер имен». Щелкните здесь, чтобы узнать больше.
A16: Назад
A17: Далее
A18: Дополнительные сведения в Интернете
A19: Все о функции ЕСЛИ
A20: Все о функции ЕСЛИМН
A21: Сложные операторы ЕСЛИ
A22: Бесплатные учебные веб-курсы по Excel
C27: Товар | D27: Количество | E27: Стоимость | F27: Итого
C28: Вилка | D28: 2 | E28: 9.76 ₽ | F28: ='Операторы ЕСЛИ'!$E$28:$E$29*'Операторы ЕСЛИ'!$D$28:$D$29 -> 19.52 ₽
C29: Ложка | D29: 3 | E29: 3.42 ₽ | F29: ='Операторы ЕСЛИ'!$E$28:$E$29*'Операторы ЕСЛИ'!$D$28:$D$29 -> 10.26 ₽
D31: Промежуточный итог | E31: =SUM('Операторы ЕСЛИ'!$E$28:$E$29) -> 13.18 ₽ | F31: =SUM('Операторы ЕСЛИ'!F28:F29) -> 29.78 ₽
D33: НДС? | E33: Да | F33: =IF(E33="Да",F31*НДС,0) -> 2.46 ₽
D35: Доставка? | E35: Да | F35: =IF(E35="Да",SUM(D28:D29)*1.25,0) -> 6.25 ₽
D37: Итого | F37: =SUM(F33,F31,F35) -> 38.48 ₽

Sheet ВПР
A1: ВПР
A2: ВПР — одна из самых популярных (и наших любимых!) функций Excel. Она позволяет найти значение в столбце слева, а затем вернуть данные из другого столбца справа. У функции ВПР следующий синтаксис:
A3: =ВПР(A1;B:C;2;ЛОЖЬ)
A4: Что нужно найти?
A5: Из какого столбца справа нужно получить значение?
A6: Где нужно найти значение?
A7: Может ли совпадение быть неточным?
A8: В ячейке D22 введите =ВПР(C22;C17:D20;2;ЛОЖЬ). Правильный ответ для значения «Яблоки» — 50. Функция ВПР нашла значение «Яблоки», а затем вернула количество, указанное в столбце справа от него.
A9: Теперь попробуйте самостоятельно ввести формулу для таблицы «Мясо» в ячейку G22. Вы должны получить формулу =ВПР(F22;F17:G20;2;ЛОЖЬ).
A10: ЭКСПЕРИМЕНТ Попробуйте выбрать другие элементы из раскрывающихся списков. Значения в ячейках результатов мгновенно обновятся.
A11: Подробнее
A12: Далее
A13: ВПР и #Н/Д
A14: Рано или поздно вы столкнетесь с тем, что функция ВПР не сможет найти требуемое значение и вернет ошибку #Н/Д. Это может произойти потому, что искомое значение не существует или ячейка, указывающая на него, пуста.
A15: Если вы знаете, что искомое значение существует, и хотите скрывать сообщение об ошибке, если ячейка, ссылающаяся на него, пуста, можно использовать оператор ЕСЛИ. При этом формула в ячейке D43 будет выглядеть следующим образом: =ЕСЛИ(C43="";"";ВПР(C43;C37:D41;2;ЛОЖЬ)) Эта формула означает, что если в ячейке C43 ничего нет (""), возвращается пустое значение, а в противном случае возвращаются результаты функции ВПР. Обратите внимание на вторую круглую скобку в конце формулы. Она закрывает оператор ЕСЛИ.
A16: Если вы не уверены в том, что искомое значение существует, но не хотите, чтобы выводилась ошибка #Н/Д, вы можете использовать в ячейке G43 специальную функцию ЕСЛИОШИБКА: =ЕСЛИОШИБКА(ВПР(F43;F37:G41;2;ЛОЖЬ);""). Если функция ВПР возвращает действительный результат, он будет выведен; в противном случае не отображается ничего (""). Кроме того, вы можете вывести определенное число (0, 1, 2 и т. д.) или текстовое значение, например "Неправильная формула". | C16: Фрукт | D16: Количество | F16: Мясо | G16: Количество
A17: ВАЖНО Функция ЕСЛИОШИБКА является глобальным обработчиком ошибок, то есть подавляет любые ошибки в формуле. Это может привести к проблемам, если в формуле есть ошибка, которую следовало бы исправить. Не добавляйте обработчики ошибок в формулы, пока не будете абсолютно уверены в том, что они работают правильно. | C17: Яблоки | D17: 50 | F17: Говядина | G17: 50
A18: Назад | C18: Апельсины | D18: 20 | F18: Курятина | G18: 30
A19: Далее | C19: Бананы | D19: 60 | F19: Свинина | G19: 10
A20: Дополнительные сведения в Интернете | C20: Лимоны | D20: 40 | F20: Рыба | G20: 50
A21: Все о функции ВПР
A22: Все о функциях ИНДЕКС и ПОИСКПОЗ | C22: Яблоки | F22: Свинина
A23: Все о функции ЕСЛИОШИБКА
A24: Использование сводных таблиц для анализа данных
A25: Бесплатные учебные веб-курсы по Excel
C35: Если бы функция СУММ в ячейке D42 могла говорить, вот что бы она сказала: просуммируйте значения в ячейках D38, D39, D40 и D41.
C36: Товар | D36: Количество | F36: Товар | G36: Количество
C37: Хлеб | D37: 50 | F37: Хлеб | G37: 50
C38: Пончики | D38: 100 | F38: Пончики | G38: 100
C39: Печенье | D39: 40 | F39: Печенье | G39: 40
C40: Торты | D40: 50 | F40: Торты | G40: 50
C41: Пироги | D41: 20 | F41: Пироги | G41: 20
D43: =VLOOKUP(C43,C37:D41,2,FALSE) ->  | F43: Выпечка | G43: =IFERROR(VLOOKUP(F43,F37:G41,2,FALSE),"") -> 

Sheet Условные функции
A1: Условные функции: СУММЕСЛИ
A2: Условные функции позволяют определять сумму, среднее, количество значений, минимум и максимум в диапазоне с учетом указанного условия. Например, можно определить, сколько в списке фруктов яблок или апельсинов сорта Florida. | C2: Фрукт | D2: Количество | F2: Фрукт | G2: Сорт | H2: Количество | Z2: Фрукт | AB2: Яблоки | AD2: Апельсины | AF2: Бананы | AH2: Лимоны
A3: Функция СУММЕСЛИ позволяет вычислить сумму в одном диапазоне с учетом условия, соответствие которому определяется по другому диапазону. Например, так можно определить общее количество яблок. Выберите ячейку D17 и введите =СУММЕСЛИ(C3:C14;C17;D3:D14). Функция СУММЕСЛИ имеет следующий синтаксис: | C3: Яблоки | D3: 50 | F3: Яблоки | G3: Fuji | H3: 50 | Z3: Яблоки | AB3: Fuji | AD3: Florida | AF3: Cavendish | AH3: Rough
A4: =SUMIF(C3:C14,C17,D3:D14) -> 150 | C4: Апельсины | D4: 20 | F4: Апельсины | G4: Florida | H4: 20 | Z4: Апельсины | AB4: Honeycrisp | AD4: Navel | AF4: Lady Finger | AH4: Eureka
A5: В каком диапазоне нужно найти значение? | C5: Бананы | D5: 60 | F5: Бананы | G5: Cavendish | H5: 60 | Z5: Бананы
A6: Какое значение (текстовое или числовое) нужно найти? | C6: Лимоны | D6: 40 | F6: Лимоны | G6: Rough | H6: 40 | Z6: Лимоны
A7: В каком диапазоне нужно просуммировать соответствующие значения? | C7: Яблоки | D7: 50 | F7: Яблоки | G7: Honeycrisp | H7: 50
A8: Функция СУММЕСЛИМН похожа на функцию СУММЕСЛИ, но позволяет задавать несколько условий. Например, в этом примере можно искать значения по столбцам «Фрукт» и «Сорт», а не только по столбцу «Фрукт». Выберите ячейку H17 и введите =СУММЕСЛИМН(H3:H14;F3:F14;F17;G3:G14;G17). Функция СУММЕСЛИМН имеет следующий синтаксис: | C8: Апельсины | D8: 20 | F8: Апельсины | G8: Navel | H8: 20
A9: =СУММЕСЛИМН(H3:H14;F3:F14;F17;G3:G14;G17) | C9: Бананы | D9: 60 | F9: Бананы | G9: Lady Finger | H9: 60
A10: В каком диапазоне нужно просуммировать значения? | C10: Лимоны | D10: 40 | F10: Лимоны | G10: Eureka | H10: 40
A11: Первый диапазон для поиска соответствующих значений | C11: Яблоки | D11: 50 | F11: Яблоки | G11: Honeycrisp | H11: 50
A12: Первое условие | C12: Апельсины | D12: 20 | F12: Апельсины | G12: Navel | H12: 20
A13: Второй диапазон для поиска соответствующих значений | C13: Бананы | D13: 60 | F13: Бананы | G13: Cavendish | H13: 60
A14: Второе условие | C14: Лимоны | D14: 40 | F14: Лимоны | G14: Eureka | H14: 40
A15: СОВЕТ ЭКСПЕРТА В ячейках «Фрукт» и «Сорт» есть раскрывающееся списки, в которых можно выбрать различные фрукты. Попробуйте сделать это и обратите внимание на то, как формулы автоматически обновляются.
A16: Подробнее | C16: Фрукт | D16: СУММЕСЛИ | F16: Фрукт | G16: Сорт | H16: СУММЕСЛИМН
A17: Следующий шаг | C17: Яблоки | F17: Апельсины | G17: Florida
A18: Условные функции: СУММЕСЛИ
A19: Функции СЧЁТЕСЛИ и СЧЁТЕСЛИМН позволяют подсчитать значения в диапазоне с учетом указанных условий. Они отличаются от функций ЕСЛИ и ЕСЛИМН тем, что у них есть только условия и диапазон, в котором они проверяются. Они не суммируют значения в одном диапазоне после проверки значений в другом.
A20: Выберите ячейку D64 и введите =СЧЁТЕСЛИ(C50:C61;C64). Функция СЧЁТЕСЛИ имеет следующий синтаксис:
A21: =СЧЁТЕСЛИ(C50:C61;C64)
A22: В каком диапазоне нужно найти значение?
A23: Какое значение (текстовое или числовое) нужно найти?
A24: Функция СЧЁТЕСЛИМН похожа на функцию СЧЁТЕСЛИ, но позволяет задавать несколько условий. Например, в этом примере можно искать значения по столбцам «Фрукт» и «Сорт», а не только по столбцу «Фрукт». Выберите ячейку H64 и введите =СЧЁТЕСЛИМН(F50:F61;F64;G50:G61;G64). Функция СЧЁТЕСЛИМН имеет следующий синтаксис:
A25: =СЧЁТЕСЛИМН(F50:F61;F64;G50:G61;G64)
A26: Первый диапазон для подсчета значений
A27: Первое условие
A28: Второй диапазон для подсчета значений
A29: Второе условие
A30: Подробнее
A31: Далее
A32: Другие условные функции
A33: Вы уже знакомы с функциями СУММЕСЛИ, СУММЕСЛИМН, СЧЁТЕСЛИ и СЧЁТЕСЛИМН. Теперь попробуйте самостоятельно изучить другие функции, например СРЗНАЧЕСЛИ, СРЗНАЧЕСЛИМН, МАКСЕСЛИМН или МИНЕСЛИМН. Все они имеют одинаковый синтаксис, поэтому если у вас уже есть формула, вы можете просто заменить в ней название функции. Ниже вы найдете все функции, которые можно использовать в ячейке E106. Вы можете скопировать и вставить их или попытаться ввести их самостоятельно, чтобы лучше запомнить. СУММЕСЛИ =СУММЕСЛИ(C92:C103;C106;E92:E103) СУММЕСЛИМН =СУММЕСЛИМН(E92:E103;C92:C103;C106;D92:D103;D106) СРЗНАЧЕСЛИ =СРЗНАЧЕСЛИ(C92:C103;C106;E92:E103) СРЗНАЧЕСЛИМН =СРЗНАЧЕСЛИМН(E92:E103;C92:C103;C106;D92:D103;D106) СЧЁТЕСЛИ =СЧЁТЕСЛИ(C92:C103;C106) СЧЁТЕСЛИМН =СЧЁТЕСЛИМН(C92:C103;C106;D92:D103;D106) МАКСЕСЛИМН =МАКСЕСЛИМН(E92:E103;C92:C103;C106;D92:D103;D106) МИНЕСЛИМН =МИНЕСЛИМН(E92:E103;C92:C103;C106;D92:D103;D106)
A34: Подробнее
A35: Далее
A36: Функция СУММЕСЛИ с аргументом значения
A37: Вот пример использования функции СУММЕСЛИ с оператором «больше» (>) для поиска всех значений, превышающих указанное:
A38: =SUMIF(D118:D122,">=50") -> 200
A39: Сложить значения с учетом этого условия:
A40: Просмотреть эти ячейки:
A41: Если значение больше 50, добавить его в сумму.
A42: ПРИМЕЧАНИЕ. Если вы часто применяете условные формулы, возможно, стоит воспользоваться сводной таблицей. Дополнительные сведения см. в статье о сводных таблицах.
A43: Дополнительные сведения в Интернете
A44: Все о функции СУММЕСЛИ
A45: Все о функции СУММЕСЛИМН
A46: Все о функции СЧЁТЕСЛИ
A47: Все о функции СЧЁТЕСЛИМН
A48: Все о функции СРЗНАЧЕСЛИ
A49: Все о функции СРЗНАЧЕСЛИМН | C49: Фрукт | D49: Количество | F49: Фрукт | G49: Сорт | H49: Количество
A50: Все о функции МИНЕСЛИМН | C50: Яблоки | D50: 50 | F50: Яблоки | G50: Fuji | H50: 50
A51: Все о функции МАКСЕСЛИМН | C51: Апельсины | D51: 20 | F51: Апельсины | G51: Florida | H51: 20
A52: Создание раскрывающегося списка | C52: Бананы | D52: 60 | F52: Бананы | G52: Cavendish | H52: 60
A53: Бесплатные учебные веб-курсы по Excel | C53: Лимоны | D53: 40 | F53: Лимоны | G53: Rough | H53: 40
A54: В начало страницы | C54: Яблоки | D54: 50 | F54: Яблоки | G54: Honeycrisp | H54: 50
A55: Далее | C55: Апельсины | D55: 20 | F55: Апельсины | G55: Navel | H55: 20
C56: Бананы | D56: 60 | F56: Бананы | G56: Lady Finger | H56: 60
C57: Лимоны | D57: 40 | F57: Лимоны | G57: Eureka | H57: 40
C58: Яблоки | D58: 50 | F58: Яблоки | G58: Honeycrisp | H58: 50
C59: Апельсины | D59: 20 | F59: Апельсины | G59: Navel | H59: 20
C60: Бананы | D60: 60 | F60: Бананы | G60: Cavendish | H60: 60
C61: Лимоны | D61: 40 | F61: Лимоны | G61: Eureka | H61: 40
C63: Фрукт | D63: СЧЁТЕСЛИ | F63: Фрукт | G63: Сорт | H63: СЧЁТЕСЛИМН
C64: Яблоки | D64: =COUNTIF(C50:C61,C64) -> 3 | F64: Апельсины | G64: Florida | H64: =COUNTIFS(F50:F61,F64,G50:G61,G64) -> 1
C91: Фрукт | D91: Сорт | E91: Количество
C92: Яблоки | D92: Fuji | E92: 50
C93: Апельсины | D93: Florida | E93: 20
C94: Бананы | D94: Cavendish | E94: 60
C95: Лимоны | D95: Rough | E95: 40
C96: Яблоки | D96: Honeycrisp | E96: 50
C97: Апельсины | D97: Navel | E97: 20
C98: Бананы | D98: Lady Finger | E98: 60
C99: Лимоны | D99: Eureka | E99: 40
C100: Яблоки | D100: Honeycrisp | E100: 50
C101: Апельсины | D101: Navel | E101: 20
C102: Бананы | D102: Cavendish | E102: 60
C103: Лимоны | D103: Eureka | E103: 40
C105: Фрукт | D105: Сорт | E105: Попробуйте сами
C106: Лимоны | D106: Eureka | E106: =AVERAGEIFS(E92:E103,C92:C103,C106,D92:D103,D106) -> 40
C117: Наименование | D117: Количество
C118: Хлеб | D118: 50
C119: Пончики | D119: 100
C120: Печенье | D120: 40
C121: Торты | D121: 50
C122: Пироги | D122: 20
D123: =SUMIF(D118:D122,">=50") -> 200

Sheet Мастер функций
A1: Используйте мастер функций
A2: Если вы знаете имя функции, но не помните, как ее вводить, воспользуйтесь мастером функций.
A3: Выделите ячейку D10, а затем на вкладке «Формулы» нажмите кнопку «Вставить функцию», введите ВПР в поле «Поиск функции» и нажмите кнопку «Найти». Когда функция ВПР будет выделена, нажмите кнопку ОК внизу. Когда вы выбираете функцию в списке, Excel отображает ее синтаксис.
A4: Затем вы можете ввести аргументы функции в соответствующие текстовые поля. При вводе каждого аргумента Excel обработает его и покажет результат. Внизу окна выводится окончательный результат. При вводе каждой части формулы условия для каждого аргумента указываются в нижней части формы. Когда вы закончите работу, нажмите клавишу «ОК», и Excel введет формулу. | C4: Фрукт | D4: Количество
A5: ПОПРОБУЙТЕ САМИ! Вы должны получить формулу =ВПР(C10;C5:D8;2;ЛОЖЬ). | C5: Яблоки | D5: 50
A6: ПОЛЕЗНЫЕ СВЕДЕНИЯ Вы можете ввести ссылки на ячейки и диапазоны или выбрать их с помощью мыши. | C6: Апельсины | D6: 20
A7: ПОЛЕЗНЫЕ СВЕДЕНИЯ При вводе каждого аргумента его описание выводится в нижней части формы (над результатом формулы). | C7: Бананы | D7: 60
A8: Назад | C8: Лимоны | D8: 40
A9: Далее
A10: Дополнительные сведения в Интернете | C10: Яблоки | D10: =VLOOKUP(C10,C5:D8,2,FALSE) -> 50
A11: Полные сведения о формулах в Excel
A12: Функции Excel (по категориям)
A13: Функции Excel (по алфавиту)
A14: Бесплатные учебные веб-курсы по Excel

Sheet Ошибки в формулах
A1: Исправление ошибок в формулах
A2: Рано или поздно вам встретится формула с ошибкой, которую Excel обозначает сообщением #ОШИБКА! Ошибки могут быть полезны, так как они указывают на то, что что-то не работает, но иногда их сложно исправить. К счастью, существует несколько решений, которые помогут вам определить причину ошибки и исправить ее.
A3: Проверка ошибок: выберите «Формулы» > «Проверка ошибок». Откроется диалоговое окно, в котором указана общая причина ошибки. Ошибка #Н/Д в ячейке D9 вызвана отсутствием значения «Яблоко». Вы можете исправить ошибку, указав существующее значение, скрыть ее, используя функцию ЕСЛИОШИБКА, или проигнорировать ошибку, так как она исчезнет, когда вы введете допустимое значение. | C3: Фрукт | D3: Количество
A4: Если нажать кнопку «Справка по этой ошибке», откроется раздел справки, посвященный сообщению об ошибке. Если щелкнуть «Показать этапы вычисления», появится диалоговое окно вычисления формулы. | C4: Яблоки | D4: 50
A5: При каждом нажатии кнопки «Вычислить» Excel будет обрабатывать одну часть формулы. Даже если Excel не укажет напрямую, в чем ошибка, вы сможете понять, где она возникла. После этого прочтите раздел справки, чтобы понять, что не так с формулой. | C5: Апельсины | D5: 20
A6: ЭКСПЕРИМЕНТ В чем тут проблема? Подсказка. Мы пытаемся вычислить СУММУ всех чисел. | C6: Бананы | D6: 60
A7: ПОЛЕЗНЫЕ СВЕДЕНИЯ Нажав кнопку «Параметры», можно задать правила отображения или игнорирования ошибок. | C7: Лимоны | D7: 40
A8: Назад
A9: Далее | C9: Яблоко | D9: =VLOOKUP(C9,C3:D7,2,FALSE) -> 
A10: Дополнительные сведения в Интернете
A11: Поиск ошибок в формулах
A12: Рекомендации, позволяющие избежать появления неработающих формул
A13: Вычисление вложенной формулы по шагам
A14: Бесплатные учебные веб-курсы по Excel
C30: Фрукт | D30: Количество
C31: Яблоки | D31: 50
C32: Апельсины | D32: 20
C33: Бананы | D33: 60
C34: Лимоны | D34: 40
C36: Итого | D36: =sume(D31:D34) -> 

Sheet Дополнительные сведения
A1: Есть еще вопросы об Excel?
A2: Нажмите клавиши ALT+X и введите свой запрос.
A3: Это еще не все. Есть чему поучиться с Excel:
A4: Сообщество: Задавайте вопросы и общайтесь с другими фанатами Excel.
A5: Что нового? Подписчики Office 365 постоянно получают обновления и новые функции.
